bitfinex-derivatives/quotes_SOLF0:USTF0_20250714
["timestamp","ask_amount","ask_price","bid_price","bid_amount"]
[1752514089665,8.03557682,164.19,164.18,6.0905]
[1752514090973,3.48,164.18,164.17,6.0908]
[1752514091165,3.48,164.18,164.17,9.6108]
[1752514092472,3.48,164.18,164.17,6.0908]
[1752514092972,3.48,164.18,164.17,9.6108]
[1752514093471,3.48,164.18,164.17,6.0908]
[1752514094768,3.48,164.18,164.17,9.6108]
[1752514094975,3.48,164.2,164.19,6.0901]
[1752514095369,3.48,164.2,164.17,3.52]
[1752514095569,3.48,164.2,164.18,6.0904]
[1752514096966,3.48,164.2,164.18,9.6104]
[1752514097675,177.8,164.21,164.19,3.52]
[1752514098176,3.48,164.2,164.19,3.52]
[1752514098572,3.48,164.2,164.19,9.61]
[1752514098772,8.03557682,164.2,164.17,3.52]
[1752514099074,3.48,164.19,164.17,3.52]
[1752514099278,3.48,164.19,164.18,6.0905]
[1752514099878,3.48,164.19,164.18,9.6105]
[1752514102573,178.86026446,164.21,164.19,6.0901]
[1752514102574,4.54026446,164.21,164.19,6.0901]
[1752514102880,3.48,164.21,164.2,3.52]
[1752514103779,3.48,164.21,164.2,9.6098]
[1752514105178,4.55557682,164.24,164.21,6.0891]
[1752514105373,181.24,164.23,164.22,3.52]
[1752514107571,181.12,164.23,164.22,3.52]
[1752514108178,3.48,164.23,164.22,3.52]
[1752514108382,181.1,164.23,164.22,3.52]
[1752514108879,3.48,164.23,164.22,3.52]
[1752514109080,1.06007067,164.24,164.22,9.6091]
[1752514109275,3.48,164.23,164.22,9.6091]
[1752514109471,181.08,164.23,164.22,3.52]
[1752514110179,181.08,164.23,164.22,9.6091]
[1752514110674,3.48,164.23,164.22,9.6091]
[1752514110879,181.32,164.23,164.22,9.6091]
[1752514111879,3.48,164.23,164.22,9.6091]
[1752514112078,181.3,164.23,164.22,9.6091]
[1752514112476,181.3,164.23,164.22,3.52]
[1752514113278,3.48,164.23,164.22,3.52]
[1752514113479,181.28,164.23,164.22,3.52]
[1752514114185,181.28,164.23,164.22,9.6091]
[1752514115882,181.28,164.23,164.22,3.52]
[1752514116485,3.44,164.22,164.19,6.09]
[1752514116780,3.44,164.2,164.14,3.57]
[1752514116985,3.44,164.18,164.14,3.57]
[1752514117385,3.44,164.18,164.17,3.57]
[1752514117685,3.44,164.18,164.13,4.55557682]
[1752514117880,3.44,164.18,164.16,3.57]
[1752514118376,3.44,164.18,164.15,6.0914]
[1752514118577,3.44,164.18,164.14,9.662]
[1752514118782,3.44,164.18,164.11,4.55557682]
[1752514119086,188.52587682,164.19,164.16,6.091]
[1752514119381,3.44,164.17,164.16,6.091]
[1752514119583,4.55557682,164.17,164.07,6.73485281]
[1752514119783,4.55557682,164.17,164.09,4.55557682]
[1752514119988,3.44,164.16,164.1,3.57]
[1752514120183,3.44,164.17,164.11,4.55557682]
[1752514120388,177.94,164.16,164.11,4.55557682]
[1752514120587,181.38,164.16,164.11,4.55557682]
[1752514120782,181.38,164.16,164.15,9.6617]
[1752514120989,3.44,164.16,164.15,9.6617]
[1752514121487,3.44,164.16,164.15,3.57]
[1752514121689,4.55557682,164.16,164.06,3.57]
[1752514121886,3.44,164.15,164.09,3.57]
[1752514122188,3.44,164.15,164.12,6.0927]
[1752514122387,3.44,164.15,164.12,9.6627]
[1752514122589,3.44,164.15,164.08,4.55557682]
[1752514122888,3.44,164.15,164.14,3.57]
[1752514124291,3.44,164.15,164.14,9.662]
[1752514127293,178.06,164.17,164.15,6.0915]
[1752514127491,3.44,164.16,164.15,9.6615]
[1752514127687,3.44,164.16,164.15,3.57]
[1752514129687,3.44,164.16,164.15,9.6617]
[1752514129892,3.44,164.16,164.14,3.57]
[1752514130190,3.44,164.16,164.09,4.55557682]
[1752514130191,3.44,164.16,164.1,3.57]
[1752514130895,3.44,164.16,164.14,6.0918]
[1752514131090,3.44,164.15,164.1,4.55557682]
[1752514131288,3.44,164.14,164.05,12.1901]
[1752514131497,3.44,164.14,164.12,6.0926]
[1752514132298,3.44,164.13,164.1,3.57]
[1752514132494,178.02,164.13,164.1,3.57]
[1752514132692,3.44,164.12,164.1,3.57]
[1752514132997,3.44,164.11,164.1,9.6635]
[1752514133296,3.44,164.11,164.0,6.73485281]
[1752514133592,7.99557682,164.07,164.01,3.57]
[1752514133992,3.44,164.06,164.05,6.0954]
[1752514134192,3.44,164.06,164.05,9.6654]
[1752514134392,3.44,164.06,164.05,6.0954]
[1752514134695,3.44,164.08,164.05,3.57]
[1752514135295,3.44,164.08,164.07,6.0946]
[1752514135594,3.44,164.08,164.02,3.57]
[1752514135991,3.44,164.08,164.06,6.0948]
[1752514136295,3.44,164.08,164.06,9.6648]
[1752514136689,3.44,164.08,164.06,6.0948]
[1752514137495,178.64,164.09,164.07,6.0944]
[1752514137997,3.44,164.08,164.07,6.0944]
[1752514138693,3.44,164.08,164.06,6.095]
[1752514138893,4.55557682,164.07,164.06,6.095]
[1752514139097,7.99557682,164.07,164.06,6.095]
[1752514142602,7.99557682,164.07,164.04,3.57]
[1752514142603,4.55557682,164.07,164.04,3.57]
[1752514143099,3.43,164.05,164.04,9.6657]
[1752514143695,3.43,164.05,164.04,6.0957]
[1752514143901,181.89,164.05,164.04,6.0957]
[1752514144193,186.44557682,164.05,164.03,9.496]
[1752514144404,3.43,164.04,164.03,9.496]
[1752514144901,178.48,164.07,164.03,3.4]
[1752514145097,3.43,164.06,164.03,3.4]
[1752514145296,3.43,164.06,164.01,3.4]
[1752514145488,3.43,164.06,164.05,6.0952]
[1752514145890,3.43,164.06,164.01,3.4]
[1752514146090,3.43,164.06,164.04,9.4955]
[1752514146299,3.43,164.05,164.04,3.4]
[1752514147102,3.43,164.05,164.04,9.4957]
[1752514147301,178.48,164.08,164.04,3.4]
[1752514147496,3.43,164.07,164.04,3.4]
[1752514147802,3.43,164.07,164.06,3.4]
[1752514149596,3.43,164.07,164.03,3.4]
[1752514150304,3.43,164.07,164.03,6.0961]
[1752514150496,3.43,164.07,164.04,3.4]
[1752514150698,3.43,164.07,164.01,3.4]
[1752514151801,3.43,164.07,164.03,3.4]
[1752514153002,3.43,164.07,164.03,9.4958]
[1752514153202,3.43,164.07,164.04,3.4]
[1752514153403,3.43,164.07,164.05,3.4]
[1752514156206,3.43,164.07,164.05,9.4953]
[1752514157206,3.43,164.06,164.05,6.0953]
[1752514157408,3.43,164.09,164.02,4.55557682]
[1752514157708,178.18,164.08,164.02,4.55557682]
[1752514157907,181.61,164.08,164.03,3.4]
[1752514158106,181.61,164.08,164.07,6.0946]
[1752514158405,181.61,164.08,164.07,9.4946]
[1752514158802,178.2,164.1,164.08,3.4]
[1752514159011,181.63,164.1,164.08,3.4]
[1752514159402,3.43,164.09,164.04,4.55557682]
[1752514159609,3.43,164.08,164.04,4.55557682]
[1752514160005,178.22,164.1,164.05,3.4]
[1752514160206,181.65,164.1,164.05,3.4]
[1752514160703,181.65,164.1,164.09,3.4]
[1752514161010,178.22,164.12,164.09,3.4]
[1752514161310,181.65,164.12,164.11,3.4]
[1752514161700,3.43,164.11,164.06,3.4]
[1752514161910,3.43,164.07,164.06,3.4]
[1752514162506,3.43,164.08,164.06,3.4]
[1752514162803,3.43,164.08,164.07,6.0946]
[1752514163011,3.43,164.08,164.07,9.4946]
[1752514163305,3.43,164.1,164.09,3.4]
[1752514164005,3.43,164.1,164.09,9.4939]
[1752514168314,3.43,164.11,164.1,3.4]
[1752514172022,181.49,164.11,164.1,3.4]
[1752514172224,187.5831,164.11,164.1,3.4]
[1752514173119,5.07388233,164.14,164.1,3.4]
[1752514173327,3.39,164.16,164.13,3.3]
[1752514173519,8.46388233,164.18,164.13,3.3]
[1752514173720,3.39,164.17,164.13,3.3]
[1752514174217,9.4812,164.17,164.14,6.0919]
[1752514174420,9.4812,164.17,164.15,3.3]
[1752514175327,9.4812,164.17,164.13,6.0923]
[1752514175627,9.4812,164.17,164.16,3.3]
[1752514176222,184.8107,164.18,164.16,3.3]
[1752514176426,188.2007,164.18,164.16,3.3]
[1752514176723,6.0907,164.18,164.16,3.3]
[1752514176925,188.1404,164.19,164.16,3.3]
[1752514178727,9.4806,164.18,164.16,3.3]
[1752514178929,9.4806,164.18,164.17,3.3]
[1752514179127,3.39,164.18,164.17,3.3]
[1752514180728,9.4805,164.18,164.17,3.3]
[1752514181426,3.39,164.18,164.17,3.3]
[1752514181628,187.9803,164.19,164.17,3.3]
[1752514181820,3.39,164.18,164.13,4.57213155]
[1752514182027,6.0903,164.19,164.13,4.57213155]
[1752514182428,6.0903,164.19,164.14,3.3]
[1752514182732,9.4803,164.19,164.16,3.3]
[1752514184227,4.57213155,164.22,164.16,3.3]
[1752514184228,186.34213155,164.22,164.16,3.3]
[1752514184430,3.39,164.21,164.16,3.3]
[1752514184935,6.0904,164.19,164.16,3.3]
[1752514185129,3.39,164.19,164.16,3.3]
[1752514186730,3.39,164.21,164.16,3.3]
[1752514187331,6.0907,164.18,164.16,3.3]
[1752514188128,182.83213155,164.22,164.07,5.10759757]
[1752514188129,3.39,164.21,164.07,5.10759757]
[1752514188430,190.4383,164.22,164.1,4.57213155]
[1752514188431,3.39,164.16,164.1,4.57213155]
[1752514188629,3.39,164.16,164.11,3.3]
[1752514188832,3.39,164.15,164.11,3.3]
[1752514189134,9.4818,164.15,164.11,3.3]
[1752514189726,6.0922,164.14,164.11,3.3]
[1752514190635,6.0924,164.13,164.11,3.3]
[1752514190943,9.4824,164.13,164.11,3.3]
[1752514191236,6.0932,164.11,164.06,4.57594584]
[1752514191429,4.57594584,164.15,164.06,4.57594584]
[1752514191630,6.093,164.12,164.07,3.3]
[1752514191832,4.57594584,164.15,164.08,3.3]
[1752514192032,3.39,164.14,164.08,3.3]
[1752514192430,6.093,164.12,164.08,3.3]
[1752514192634,7.96504049,164.16,164.08,7.87504049]
[1752514192830,6.0923,164.14,164.09,9.3939]
[1752514193026,4.57504049,164.16,164.1,3.3]
[1752514193230,3.39,164.14,164.1,3.3]
[1752514193942,6.0924,164.13,164.1,3.3]
[1752514195333,3.39,164.14,164.1,3.3]
[1752514195937,6.0927,164.13,164.1,3.3]
[1752514196237,3.39,164.14,164.1,3.3]
[1752514196932,9.4823,164.14,164.1,3.3]
[1752514198638,6.0923,164.14,164.11,3.3]
[1752514199039,9.4823,164.14,164.11,3.3]
[1752514200944,9.6325,164.13,164.11,3.3]
[1752514201139,4.57504049,164.14,164.08,3.35]
[1752514201537,3.54,164.11,164.08,3.35]
[1752514201737,3.54,164.09,164.04,3.35]
[1752514201941,3.54,164.07,164.04,3.35]
[1752514202141,8.11504049,164.06,164.01,5.10759757]
[1752514202441,8.11504049,164.07,164.02,3.35]
[1752514202741,8.11504049,164.09,164.02,13.03263806]
[1752514202941,4.57504049,164.09,164.03,3.35]
[1752514203336,4.57504049,164.09,164.02,4.57504049]
[1752514203337,8.11504049,164.09,164.04,3.35]
[1752514203741,14.20904049,164.09,164.04,3.35]
[1752514203941,9.634,164.09,164.05,3.35]
[1752514204740,5.07285601,164.15,164.07,7.92504049]
[1752514204946,3.54,164.14,164.08,3.35]
[1752514205144,6.75139459,164.18,164.1,4.57504049]
[1752514205145,5.07285601,164.17,164.1,4.57504049]
[1752514205344,3.54,164.14,164.11,3.35]
[1752514206036,9.6321,164.14,164.11,3.35]
[1752514206647,3.54,164.14,164.11,3.35]
[1752514207140,3.54,164.14,164.11,6.0929]
[1752514207447,3.54,164.14,164.13,3.35]
[1752514208345,9.632,164.14,164.13,3.35]
[1752514208742,6.0927,164.13,164.06,5.11087132]
[1752514208942,3.54,164.13,164.12,3.35]
[1752514211649,3.54,164.13,164.12,9.4428]
[1752514212351,3.54,164.15,164.12,9.4428]
[1752514212545,3.54,164.14,164.13,3.35]
[1752514213249,8.11504049,164.19,164.13,9.4424]
[1752514213449,4.57504049,164.19,164.13,9.4424]
[1752514213644,3.54,164.15,164.13,9.4424]
[1752514213842,3.54,164.14,164.13,9.4424]
[1752514214246,3.54,164.14,164.13,3.35]
[1752514214445,3.54,164.14,164.12,3.35]
[1752514215045,3.54,164.12,164.05,5.11087132]
[1752514215245,3.54,164.12,164.08,3.35]
[1752514215754,3.54,164.11,164.1,9.4435]
[1752514216454,9.6331,164.11,164.1,3.35]
[1752514216649,3.54,164.11,164.1,3.35]
[1752514217853,3.54,164.11,164.1,9.4435]
[1752514218053,3.54,164.11,164.1,3.35]
[1752514218855,9.6331,164.11,164.1,3.35]
[1752514219354,6.0937,164.1,164.07,3.35]
[1752514219555,3.54,164.09,164.07,3.35]
[1752514219752,3.54,164.08,164.07,3.35]
[1752514220457,3.54,164.08,164.07,9.4446]
[1752514220748,3.54,164.1,164.07,3.35]
[1752514220954,3.54,164.14,164.11,3.35]
[1752514221251,3.54,164.14,164.1,6.0933]
[1752514221457,3.54,164.14,164.1,9.4433]
[1752514221657,6.0927,164.13,164.1,9.4433]
[1752514221855,3.54,164.12,164.1,9.4433]
[1752514222060,4.57504049,164.15,164.1,9.4433]
[1752514222061,3.54,164.14,164.1,3.35]
[1752514222256,9.6322,164.14,164.1,3.35]
[1752514222457,3.54,164.12,164.08,4.57504049]
[1752514222652,3.54,164.14,164.1,9.4433]
[1752514223155,6.0926,164.13,164.1,9.4433]
[1752514223356,3.54,164.12,164.1,9.4433]
[1752514223558,3.54,164.12,164.09,6.0938]
[1752514223758,6.0929,164.12,164.09,6.0938]
[1752514223958,3.54,164.11,164.08,3.35]
[1752514224158,3.54,164.1,164.04,4.57504049]
[1752514224359,3.54,164.1,164.05,3.35]
[1752514224566,3.54,164.1,164.07,9.4444]
[1752514224954,3.54,164.1,164.07,3.35]
[1752514225160,4.57504049,164.09,164.06,9.4448]
[1752514225364,4.57504049,164.09,164.04,3.35]
[1752514225365,3.54,164.08,164.04,3.35]
[1752514225658,3.54,164.07,163.99,5.11659161]
[1752514225862,4.57504049,164.05,164.0,3.35]
[1752514226059,3.54,164.04,163.99,3.35]
[1752514226464,9.6359,164.04,163.99,3.35]
[1752514226665,3.54,164.03,164.01,6.0966]
[1752514226861,4.57504049,164.05,164.01,3.35]
[1752514227059,3.54,164.02,164.01,3.35]
[1752514227261,3.54,164.04,164.01,3.35]
[1752514227952,4.57504049,164.07,164.0,4.57504049]
[1752514228266,3.54,164.05,164.04,3.35]
[1752514228462,4.57504049,164.09,164.06,6.0949]
[1752514228656,3.54,164.07,164.06,9.4449]
[1752514233669,3.5,164.1,164.08,6.0941]
[1752514234370,3.5,164.09,164.07,6.0945]
[1752514235269,3.5,164.08,164.07,6.0945]
[1752514235472,3.5,164.08,164.01,8.22504049]
[1752514235767,3.5,164.07,164.02,3.65]
[1752514235968,3.5,164.07,164.05,6.0952]
[1752514236169,3.5,164.07,164.05,9.7452]
[1752514236370,3.5,164.07,164.05,3.65]
[1752514237177,3.5,164.08,164.06,3.65]
[1752514237374,3.5,164.07,164.06,3.65]
[1752514237873,3.5,164.07,164.06,9.745]
[1752514241383,3.5,164.06,164.02,3.65]
[1752514241581,3.5,164.05,163.98,3.65]
[1752514241778,3.5,164.03,163.97,3.65]
[1752514241976,3.5,164.01,163.97,3.65]
[1752514242181,3.5,164.01,163.99,6.0976]
[1752514242379,3.5,164.01,163.97,3.65]
[1752514242776,3.5,164.01,164.0,6.0972]
[1752514242975,3.5,164.01,163.98,3.65]
[1752514243485,3.5,164.01,164.0,6.0972]
[1752514243684,3.5,164.01,163.98,3.65]
[1752514244286,3.5,164.01,163.99,6.0974]
[1752514244483,3.5,164.01,163.96,3.65]
[1752514244783,3.5,164.01,163.97,3.65]
[1752514245186,3.5,164.01,163.98,6.0979]
[1752514245584,4.57504049,164.0,163.98,6.0979]
[1752514245882,3.5,163.99,163.98,6.0979]
[1752514250984,4.57504049,164.02,164.01,6.0969]
[1752514251592,8.07504049,164.02,164.01,6.0969]
[1752514251893,8.07504049,164.02,164.01,9.7469]
[1752514252396,3.5,164.02,164.01,9.7469]
[1752514252785,3.5,164.02,164.01,6.0969]
[1752514252989,8.07504049,164.02,164.01,6.0969]
[1752514255893,3.5,164.02,164.01,6.0969]
[1752514256397,3.5,164.02,163.97,3.65]
[1752514256599,3.5,163.99,163.93,4.57504049]
[1752514256793,3.5,163.99,163.94,3.65]
[1752514256995,3.5,163.99,163.98,6.098]
[1752514257194,3.5,163.99,163.98,9.748]
[1752514257599,4.57504049,164.02,163.98,3.65]
[1752514257991,4.57504049,164.02,163.99,3.65]
[1752514258292,3.5,164.01,163.93,4.57504049]
[1752514258488,3.5,164.01,163.97,3.65]
[1752514258692,3.5,164.01,164.0,6.0972]
[1752514259094,3.5,164.01,163.98,3.65]
[1752514259294,3.5,164.01,164.0,6.0972]
[1752514260098,3.5,164.0,163.99,6.0974]
[1752514260600,3.5,164.0,163.98,6.0977]
[1752514260796,3.48,163.99,163.98,6.0977]
[1752514261905,3.48,163.99,163.98,9.6377]
[1752514262106,182.57504049,164.02,164.01,6.0969]
[1752514262401,186.05504049,164.02,164.01,6.0969]
[1752514263699,8.05504049,164.02,164.01,6.0969]
[1752514268406,185.99504049,164.02,164.01,6.0969]
[1752514268796,8.05504049,164.02,164.01,6.0969]
[1752514269000,185.99504049,164.02,164.01,6.0969]
[1752514270602,181.42,164.02,164.01,9.6369]
[1752514271099,177.94,164.02,164.01,9.6369]
[1752514271301,530.18,164.06,164.03,3.54]
[1752514271504,3.48,164.05,164.03,3.54]
[1752514272206,3.48,164.05,164.04,9.6357]
[1752514273599,3.48,164.05,164.03,6.096]
[1752514273804,3.48,164.05,164.03,9.636]
[1752514274009,3.48,164.05,164.03,3.54]
[1752514274204,3.48,164.05,164.04,9.6355]
[1752514277612,3.48,164.05,164.04,3.54]
[1752514278309,3.48,164.05,164.0,3.54]
[1752514278508,3.48,164.04,164.0,3.54]
[1752514278808,3.48,164.04,164.03,9.6359]
[1752514279204,3.48,164.05,164.04,3.54]
[1752514283014,3.48,164.05,164.04,9.6357]
[1752514285112,8.53960939,164.08,164.03,4.57504049]
[1752514285311,8.53960939,164.08,163.99,12.1948]
[1752514285312,3.48,164.09,164.05,4.57504049]
[1752514285712,3.48,164.09,164.08,3.54]
[1752514285917,3.48,164.11,164.08,3.54]
[1752514286419,181.38,164.12,164.08,3.54]
[1752514286815,181.38,164.12,164.1,6.0934]
[1752514287015,181.38,164.12,164.11,3.54]
[1752514287213,11.17886962,164.14,164.11,9.6329]
[1752514287515,3.48,164.13,164.12,3.54]
[1752514287715,3.48,164.13,164.09,4.57504049]
[1752514288309,3.48,164.13,164.1,3.54]
[1752514288516,9.5726,164.13,164.1,3.54]
[1752514289113,3.48,164.12,164.1,3.54]
[1752514289519,3.48,164.13,164.1,3.54]
[1752514289719,9.5727,164.13,164.1,3.54]
[1752514290717,9.5727,164.13,164.11,3.49]
[1752514290914,3.56,164.15,164.11,8.06504049]
[1752514291216,3.56,164.14,164.1,4.57504049]
[1752514291412,5.08666962,164.18,164.11,3.49]
[1752514291615,177.84,164.17,164.13,9.5821]
[1752514291814,181.4,164.17,164.14,3.49]
[1752514292012,9.651,164.17,164.14,3.49]
[1752514292209,9.651,164.17,164.14,9.582]
[1752514292413,9.651,164.17,164.15,3.49]
[1752514293008,6.0913,164.16,164.15,3.49]
[1752514294910,3.56,164.16,164.15,3.49]
[1752514295417,9.6513,164.16,164.15,3.49]
[1752514296119,6.0913,164.16,164.15,3.49]
[1752514296319,9.651,164.17,164.15,3.49]
[1752514296621,3.56,164.17,164.15,3.49]
[1752514296821,6.0909,164.18,164.16,3.49]
[1752514297013,181.34,164.19,164.16,3.49]
[1752514298010,181.34,164.19,164.16,9.5812]
[1752514298217,181.34,164.19,164.16,6.0912]
[1752514298418,3.56,164.19,164.17,3.49]
[1752514298617,3.56,164.2,164.18,3.49]
[1752514298919,1.06007067,164.24,164.18,8.06504049]
[1752514299225,178.84007067,164.24,164.19,3.49]
[1752514299420,3.56,164.23,164.19,3.49]
[1752514299620,3.56,164.23,164.21,6.0893]
[1752514299822,188.48857067,164.24,164.22,3.49]
[1752514300017,183.8477,164.26,164.22,9.5787]
[1752514300219,9.6477,164.26,164.21,3.49]
[1752514300421,3.56,164.26,164.21,3.49]
[1752514300626,3.56,164.26,164.24,3.49]
[1752514301020,4.61994152,164.27,164.24,3.49]
[1752514301325,3.56,164.26,164.24,3.49]
[1752514301824,3.56,164.26,164.24,6.0882]
[1752514302020,4.57504049,164.31,164.25,3.49]
[1752514302214,3.56,164.3,164.25,3.49]
[1752514302422,3.56,164.29,164.26,6.0874]
[1752514302616,3.56,164.29,164.27,3.49]
[1752514302821,3.56,164.29,164.24,4.57504049]
[1752514302822,3.56,164.29,164.28,3.49]
[1752514303125,9.6465,164.29,164.28,3.49]
[1752514306722,6.0865,164.29,164.28,3.49]
[1752514307027,6.0863,164.3,164.28,3.49]
[1752514307320,9.6463,164.3,164.28,3.49]
[1752514307925,6.0865,164.29,164.28,3.49]
[1752514308124,3.56,164.29,164.26,3.49]
[1752514308322,9.6479,164.26,164.25,3.49]
[1752514308820,4.57504049,164.29,164.16,4.57504049]
[1752514308821,9.6486,164.24,164.21,6.0892]
[1752514309028,9.6486,164.24,164.23,3.49]
[1752514309427,3.56,164.24,164.23,3.49]
[1752514309622,6.0881,164.25,164.23,3.49]
[1752514309930,9.6481,164.25,164.24,3.49]
[1752514310530,9.6484,164.24,164.23,3.49]
[1752514311929,3.56,164.24,164.23,3.49]
[1752514313129,3.56,164.27,164.24,3.49]
[1752514313338,3.56,164.29,164.25,3.49]
[1752514313529,3.56,164.28,164.25,3.49]
[1752514314232,1.05976399,164.31,164.25,3.49]
[1752514314631,3.56,164.29,164.25,3.49]
[1752514315034,1.05976399,164.31,164.25,3.49]
[1752514315332,3.56,164.27,164.26,3.49]
[1752514315832,3.56,164.28,164.26,3.49]
[1752514316332,9.6469,164.28,164.26,3.49]
[1752514317234,9.6469,164.28,164.26,6.0875]
[1752514317437,9.6469,164.28,164.27,3.49]
[1752514317633,3.56,164.28,164.27,3.49]
[1752514318029,6.0868,164.28,164.27,3.49]
[1752514318238,3.56,164.29,164.26,6.0875]
[1752514318429,3.56,164.29,164.28,3.49]
[1752514318628,9.6467,164.29,164.28,3.49]
[1752514320235,4.61976399,164.31,164.28,9.5768]
[1752514320432,3.59,164.3,164.27,3.49]
[1752514320728,3.59,164.29,164.27,3.49]
[1752514320935,3.59,164.29,164.28,6.0868]
[1752514321136,3.59,164.3,164.29,3.47]
[1752514321339,5.63461088,164.34,164.29,3.47]
[1752514321630,4.57504049,164.37,164.31,3.47]
[1752514321835,3.59,164.35,164.31,3.47]
[1752514322032,3.59,164.35,164.32,6.0853]
[1752514322334,3.59,164.35,164.34,3.47]
[1752514322537,9.6745,164.35,164.34,3.47]
[1752514322938,3.59,164.35,164.32,3.47]
[1752514323133,4.57504049,164.37,164.33,3.47]
[1752514323339,3.59,164.34,164.33,3.47]
[1752514324339,9.6746,164.34,164.33,3.47]
[1752514326635,6.0846,164.34,164.33,3.47]
[1752514328437,9.6746,164.34,164.33,3.47]
[1752514332538,6.0846,164.34,164.33,3.47]
[1752514334040,1.05924787,164.38,164.33,3.47]
[1752514334041,3.59,164.37,164.33,3.47]
[1752514334737,9.6737,164.37,164.32,4.57504049]
[1752514335041,3.59,164.37,164.35,3.47]
[1752514335239,3.59,164.37,164.35,9.5542]
[1752514335541,3.59,164.37,164.36,3.47]
[1752514335741,9.6737,164.37,164.36,3.47]
[1752514337035,1.05924787,164.38,164.36,3.47]
[1752514337235,3.59,164.37,164.33,3.47]
[1752514338541,1.05924787,164.38,164.36,3.47]
[1752514339146,9.6736,164.37,164.34,3.47]
[1752514339348,3.59,164.36,164.34,3.47]
[1752514339552,9.6737,164.37,164.34,6.0844]
[1752514339752,3.59,164.35,164.34,6.0844]
[1752514340050,3.59,164.36,164.33,4.57504049]
[1752514340251,3.59,164.36,164.35,9.5542]
[1752514341946,3.59,164.38,164.35,3.47]
[1752514342152,3.59,164.38,164.36,3.47]
[1752514342555,3.59,164.42,164.36,3.47]
[1752514343148,3.59,164.38,164.37,3.47]
[1752514343551,3.59,164.38,164.37,9.5535]
[1752514343747,3.59,164.38,164.37,3.47]
[1752514343956,3.59,164.38,164.32,3.47]
[1752514344151,3.59,164.37,164.35,9.5542]
[1752514344352,3.59,164.37,164.36,3.47]
[1752514345050,3.59,164.37,164.36,9.5539]
[1752514345453,3.59,164.37,164.36,3.47]
[1752514346050,1.05892556,164.43,164.36,3.47]
[1752514346051,5.63396605,164.43,164.36,3.47]
[1752514346252,3.59,164.42,164.38,3.47]
[1752514346452,3.59,164.41,164.38,3.47]
[1752514346654,3.59,164.4,164.38,3.47]
[1752514346851,1.05892556,164.43,164.38,3.47]
[1752514347051,3.59,164.42,164.38,3.47]
[1752514347253,1.05892556,164.43,164.38,3.47]
[1752514347452,3.59,164.41,164.38,3.47]
[1752514348252,3.59,164.4,164.38,3.47]